[Event "Titled Tuesday Blitz June 20 Late 2023"]
[White "Mattheii"]
[Black "Schnaider, Ilan"]
[BlackFideId "169013"]
[WhiteElo "2515"]
[BlackElo "2224"]
[Result "0-1"]
[Round "10"]
[TimeControl "180+2"]
[Date "2023.06.20"]
[WhiteClock "0:00:11"]
[BlackClock "0:00:22"]
[Board "30"]

1. d4 {[%clk 0:03:00]}  Nf6 {[%clk 0:03:00]} 2. c4 {[%clk 0:03:01]}  g6 {[%clk 0:02:59]} 3. Nc3 {[%clk 0:03:01]}  d5 {[%clk 0:03:00]} 4. Bg5 {[%clk 0:03:01]}  Ne4 {[%clk 0:03:00]} 5. Bh4 {[%clk 0:03:01]}  Nxc3 {[%clk 0:03:00]} 6. bxc3 {[%clk 0:03:02]}  dxc4 {[%clk 0:03:01]} 7. e3 {[%clk 0:03:02]}  b5 {[%clk 0:03:01]} 8. a4 {[%clk 0:03:01]}  c6 {[%clk 0:02:59]} 9. axb5 {[%clk 0:03:00]}  Qb6 {[%clk 0:02:55]} 10. Bxc4 {[%clk 0:02:46]}  Bg7 {[%clk 0:02:21]} 11. Nf3 {[%clk 0:02:39]}  cxb5 {[%clk 0:02:14]} 12. Qb3 {[%clk 0:02:37]}  Be6 {[%clk 0:01:49]} 13. Qxb5+ {[%clk 0:02:27]}  Qxb5 {[%clk 0:01:39]} 14. Bxb5+ {[%clk 0:02:28]}  Bd7 {[%clk 0:01:39]} 15. Bd3 {[%clk 0:02:19]}  Bc6 {[%clk 0:01:35]} 16. Ke2 {[%clk 0:02:05]}  Nd7 {[%clk 0:01:32]} 17. e4 {[%clk 0:01:40]}  e6 {[%clk 0:01:24]} 18. Rhb1 {[%clk 0:01:34]}  O-O {[%clk 0:01:23]} 19. Ra6 {[%clk 0:01:27]}  Nb6 {[%clk 0:01:20]} 20. Rba1 {[%clk 0:01:14]}  f5 {[%clk 0:01:05]} 21. exf5 {[%clk 0:00:46]}  exf5 {[%clk 0:00:52]} 22. Rxa7 {[%clk 0:00:46]}  Rac8 {[%clk 0:00:52]} 23. Kd2 {[%clk 0:00:27]}  Be4 {[%clk 0:00:47]} 24. Be7 {[%clk 0:00:17]}  Rfe8 {[%clk 0:00:43]} 25. Bc5 {[%clk 0:00:18]}  Nd5 {[%clk 0:00:31]} 26. Bc4 {[%clk 0:00:18]}  Bh6+ {[%clk 0:00:32]} 27. Kd1 {[%clk 0:00:15]}  Kh8 {[%clk 0:00:24]} 28. Bxd5 {[%clk 0:00:14]}  Bxd5 {[%clk 0:00:24]} 29. Rd7 {[%clk 0:00:11]}  Bb3# {[%clk 0:00:22]} 0-1


[Site "https://www.chess.com"]

[Event "Titled Tuesday Blitz June 20 Late 2023"]
[White "Jaskolka, Tomasz"]
[Black "Simonian, Hrair"]
[WhiteFideId "1170791"]
[BlackFideId "13302337"]
[WhiteElo "2155"]
[BlackElo "2447"]
[Result "0-1"]
[Round "10"]
[TimeControl "180+2"]
[Date "2023.06.20"]
[WhiteClock "0:00:16"]
[BlackClock "0:00:29"]
[Board "33"]

1. d4 {[%clk 0:03:00]}  Nf6 {[%clk 0:02:59]} 2. Nc3 {[%clk 0:03:01]}  d5 {[%clk 0:02:59]} 3. Bf4 {[%clk 0:03:01]}  a6 {[%clk 0:02:59]} 4. e3 {[%clk 0:03:01]}  e6 {[%clk 0:02:58]} 5. Nf3 {[%clk 0:02:56]}  c5 {[%clk 0:02:58]} 6. h4 {[%clk 0:02:52]}  Nc6 {[%clk 0:02:57]} 7. Be2 {[%clk 0:02:51]}  Bd6 {[%clk 0:02:55]} 8. dxc5 {[%clk 0:02:48]}  Bxc5 {[%clk 0:02:52]} 9. Ne5 {[%clk 0:02:45]}  Bd6 {[%clk 0:02:44]} 10. Nxc6 {[%clk 0:02:43]}  bxc6 {[%clk 0:02:45]} 11. Bxd6 {[%clk 0:02:13]}  Qxd6 {[%clk 0:02:46]} 12. g3 {[%clk 0:02:13]}  Rb8 {[%clk 0:02:44]} 13. Rb1 {[%clk 0:02:12]}  e5 {[%clk 0:02:41]} 14. Qd2 {[%clk 0:02:11]}  Bf5 {[%clk 0:02:29]} 15. Bd3 {[%clk 0:02:05]}  Bg4 {[%clk 0:02:18]} 16. Bxa6 {[%clk 0:02:01]}  Bf3 {[%clk 0:02:11]} 17. Rg1 {[%clk 0:02:00]}  O-O {[%clk 0:01:48]} 18. Be2 {[%clk 0:01:59]}  Bxe2 {[%clk 0:01:47]} 19. Qxe2 {[%clk 0:01:57]}  d4 {[%clk 0:01:47]} 20. Nd1 {[%clk 0:01:50]}  c5 {[%clk 0:01:44]} 21. b3 {[%clk 0:01:48]}  e4 {[%clk 0:01:37]} 22. Nb2 {[%clk 0:01:37]}  Nd5 {[%clk 0:01:29]} 23. Nc4 {[%clk 0:01:37]}  Qf6 {[%clk 0:01:28]} 24. Qd2 {[%clk 0:01:10]}  Nc3 {[%clk 0:01:23]} 25. Ra1 {[%clk 0:01:05]}  Rbd8 {[%clk 0:01:17]} 26. exd4 {[%clk 0:01:00]}  cxd4 {[%clk 0:01:18]} 27. a4 {[%clk 0:00:51]}  e3 {[%clk 0:01:12]} 28. fxe3 {[%clk 0:00:39]}  dxe3 {[%clk 0:01:13]} 29. Qg2 {[%clk 0:00:36]}  Ne4 {[%clk 0:01:04]} 30. Rd1 {[%clk 0:00:27]}  Qf2+ {[%clk 0:01:03]} 31. Qxf2 {[%clk 0:00:25]}  exf2+ {[%clk 0:01:04]} 32. Ke2 {[%clk 0:00:25]}  fxg1=Q {[%clk 0:00:50]} 33. Rxg1 {[%clk 0:00:25]}  Nc3+ {[%clk 0:00:50]} 34. Kf3 {[%clk 0:00:25]}  Rc8 {[%clk 0:00:42]} 35. a5 {[%clk 0:00:25]}  Rfd8 {[%clk 0:00:36]} 36. Ra1 {[%clk 0:00:22]}  Ra8 {[%clk 0:00:35]} 37. a6 {[%clk 0:00:21]}  Nb5 {[%clk 0:00:31]} 38. Nb6 {[%clk 0:00:16]}  Ra7 {[%clk 0:00:30]} 39. c4 {[%clk 0:00:16]}  Nd4+ {[%clk 0:00:29]} 40. Ke4 {[%clk 0:00:17]}  Nxb3 {[%clk 0:00:30]} 41. Nd5 {[%clk 0:00:15]}  Nxa1 {[%clk 0:00:29]} 42. Nb4 {[%clk 0:00:14]}  Nb3 {[%clk 0:00:27]} 43. Nc6 {[%clk 0:00:13]}  Re8+ {[%clk 0:00:28]} 44. Kd5 {[%clk 0:00:14]}  Rxa6 {[%clk 0:00:29]} 45. Nb4 {[%clk 0:00:14]}  Ra5+ {[%clk 0:00:28]} 46. Kd6 {[%clk 0:00:14]}  Nd4 {[%clk 0:00:27]} 47. g4 {[%clk 0:00:13]}  Re6+ {[%clk 0:00:26]} 48. Kd7 {[%clk 0:00:14]}  Ra7+ {[%clk 0:00:27]} 49. Kd8 {[%clk 0:00:14]}  Nc6+ {[%clk 0:00:27]} 50. Nxc6 {[%clk 0:00:14]}  Rxc6 {[%clk 0:00:28]} 51. c5 {[%clk 0:00:15]}  Rxc5 {[%clk 0:00:28]} 52. g5 {[%clk 0:00:15]}  Rb5 {[%clk 0:00:29]} 53. Kc8 {[%clk 0:00:15]}  Re5 {[%clk 0:00:29]} 54. h5 {[%clk 0:00:16]}  Re8# {[%clk 0:00:29]} 0-1


[Site "https://www.chess.com"]

[Event "Titled Tuesday Blitz June 20 Late 2023"]
[White "Maksimovic, Bojan"]
[Black "Fishbein, Alexander"]
[WhiteFideId "14408120"]
[BlackFideId "2000377"]
[WhiteElo "2457"]
[BlackElo "2403"]
[Result "1/2-1/2"]
[Round "10"]
[TimeControl "180+2"]
[Date "2023.06.20"]
[WhiteClock "0:00:04"]
[BlackClock "0:00:18"]
[Board "34"]

1. e4 {[%clk 0:03:00]}  e5 {[%clk 0:02:58]} 2. Nf3 {[%clk 0:02:58]}  Nc6 {[%clk 0:02:58]} 3. c3 {[%clk 0:02:59]}  Nf6 {[%clk 0:02:57]} 4. d4 {[%clk 0:02:59]}  Nxe4 {[%clk 0:02:57]} 5. d5 {[%clk 0:02:57]}  Ne7 {[%clk 0:02:57]} 6. Nxe5 {[%clk 0:02:56]}  Ng6 {[%clk 0:02:57]} 7. Nxg6 {[%clk 0:02:55]}  hxg6 {[%clk 0:02:57]} 8. Qe2 {[%clk 0:02:54]}  Qe7 {[%clk 0:02:56]} 9. Be3 {[%clk 0:02:50]}  d6 {[%clk 0:02:51]} 10. Nd2 {[%clk 0:02:46]}  Nxd2 {[%clk 0:02:48]} 11. Qxd2 {[%clk 0:02:46]}  Bf5 {[%clk 0:02:47]} 12. O-O-O {[%clk 0:02:36]}  a6 {[%clk 0:02:45]} 13. f3 {[%clk 0:02:33]}  O-O-O {[%clk 0:02:43]} 14. g4 {[%clk 0:02:33]}  Bd7 {[%clk 0:02:35]} 15. Qd4 {[%clk 0:02:32]}  Re8 {[%clk 0:02:24]} 16. Bf2 {[%clk 0:02:22]}  Qg5+ {[%clk 0:02:11]} 17. Kb1 {[%clk 0:02:20]}  Kd8 {[%clk 0:01:49]} 18. Bd3 {[%clk 0:01:35]}  Qe5 {[%clk 0:01:37]} 19. h3 {[%clk 0:01:21]}  Qxd4 {[%clk 0:01:36]} 20. Bxd4 {[%clk 0:01:22]}  Rh7 {[%clk 0:01:24]} 21. h4 {[%clk 0:01:19]}  Rh6 {[%clk 0:01:17]} 22. Kc2 {[%clk 0:01:15]}  Be7 {[%clk 0:01:15]} 23. g5 {[%clk 0:00:55]}  Rh7 {[%clk 0:01:14]} 24. f4 {[%clk 0:00:55]}  Reh8 {[%clk 0:01:11]} 25. Bf2 {[%clk 0:00:56]}  Bf5 {[%clk 0:01:04]} 26. Bxf5 {[%clk 0:00:47]}  gxf5 {[%clk 0:01:05]} 27. Rh3 {[%clk 0:00:41]}  Kd7 {[%clk 0:01:03]} 28. Rdh1 {[%clk 0:00:40]}  Rh5 {[%clk 0:01:02]} 29. Kd3 {[%clk 0:00:38]}  f6 {[%clk 0:00:58]} 30. g6 {[%clk 0:00:38]}  c6 {[%clk 0:00:49]} 31. c4 {[%clk 0:00:36]}  cxd5 {[%clk 0:00:45]} 32. cxd5 {[%clk 0:00:37]}  Rc8 {[%clk 0:00:43]} 33. Be3 {[%clk 0:00:33]}  b5 {[%clk 0:00:42]} 34. Rc1 {[%clk 0:00:32]}  Rxc1 {[%clk 0:00:37]} 35. Bxc1 {[%clk 0:00:33]}  Bd8 {[%clk 0:00:37]} 36. Be3 {[%clk 0:00:33]}  Ba5 {[%clk 0:00:35]} 37. a3 {[%clk 0:00:33]}  Be1 {[%clk 0:00:34]} 38. Ke2 {[%clk 0:00:29]}  Rxh4 {[%clk 0:00:32]} 39. Rxh4 {[%clk 0:00:26]}  Bxh4 {[%clk 0:00:33]} 40. Bd4 {[%clk 0:00:22]}  a5 {[%clk 0:00:29]} 41. b3 {[%clk 0:00:18]}  a4 {[%clk 0:00:28]} 42. b4 {[%clk 0:00:18]}  Bg3 {[%clk 0:00:26]} 43. Bxf6 {[%clk 0:00:09]}  Bxf4 {[%clk 0:00:22]} 44. Bxg7 {[%clk 0:00:09]}  Ke7 {[%clk 0:00:20]} 45. Bb2 {[%clk 0:00:07]}  Bh6 {[%clk 0:00:19]} 46. Kf3 {[%clk 0:00:07]}  Kf8 {[%clk 0:00:19]} 47. Kg3 {[%clk 0:00:03]}  Bg7 {[%clk 0:00:19]} 48. Bc1 {[%clk 0:00:03]}  Be5+ {[%clk 0:00:19]} 49. Kh4 {[%clk 0:00:03]}  Kg7 {[%clk 0:00:19]} 50. Kg5 {[%clk 0:00:04]}  f4 {[%clk 0:00:19]} 51. Bxf4 {[%clk 0:00:02]}  Bxf4+ {[%clk 0:00:17]} 52. Kxf4 {[%clk 0:00:03]}  Kxg6 {[%clk 0:00:18]} 53. Kg4 {[%clk 0:00:03]}  Kf6 {[%clk 0:00:18]} 54. Kf4 {[%clk 0:00:03]}  Kg6 {[%clk 0:00:18]} 55. Kg4 {[%clk 0:00:04]}  Kf6 {[%clk 0:00:18]} 56. Kf4 {[%clk 0:00:04]}  Kg6 {[%clk 0:00:18]} 1/2-1/2


[Site "https://www.chess.com"]

[Event "Titled Tuesday Blitz June 20 Late 2023"]
[White "Turayev, Shahruh"]
[Black "WindWhistler11"]
[WhiteFideId "14003856"]
[WhiteElo "2113"]
[BlackElo "2565"]
[Result "0-1"]
[Round "10"]
[TimeControl "180+2"]
[Date "2023.06.20"]
[WhiteClock "0:00:13"]
[BlackClock "0:00:08"]
[Board "37"]

1. e4 {[%clk 0:03:00]}  e6 {[%clk 0:02:57]} 2. Nc3 {[%clk 0:03:00]}  d5 {[%clk 0:02:56]} 3. exd5 {[%clk 0:03:01]}  exd5 {[%clk 0:02:57]} 4. d4 {[%clk 0:03:02]}  Nf6 {[%clk 0:02:56]} 5. Bg5 {[%clk 0:03:02]}  Be7 {[%clk 0:02:55]} 6. Bd3 {[%clk 0:03:02]}  O-O {[%clk 0:02:54]} 7. Qd2 {[%clk 0:03:02]}  c5 {[%clk 0:02:50]} 8. dxc5 {[%clk 0:03:00]}  Nbd7 {[%clk 0:02:49]} 9. O-O-O {[%clk 0:02:52]}  Nxc5 {[%clk 0:02:48]} 10. Nf3 {[%clk 0:02:52]}  Bg4 {[%clk 0:02:43]} 11. Rhe1 {[%clk 0:02:48]}  Re8 {[%clk 0:02:37]} 12. Kb1 {[%clk 0:02:43]}  Bxf3 {[%clk 0:02:21]} 13. gxf3 {[%clk 0:02:43]}  Nfe4 {[%clk 0:02:20]} 14. Bxe4 {[%clk 0:02:14]}  Bxg5 {[%clk 0:02:02]} 15. Qxd5 {[%clk 0:02:14]}  Nxe4 {[%clk 0:01:52]} 16. fxe4 {[%clk 0:02:11]}  Qf6 {[%clk 0:01:49]} 17. e5 {[%clk 0:01:32]}  Qf5 {[%clk 0:01:42]} 18. e6 {[%clk 0:01:27]}  fxe6 {[%clk 0:01:35]} 19. Qxb7 {[%clk 0:01:19]}  Rab8 {[%clk 0:01:30]} 20. Qe4 {[%clk 0:01:10]}  Qc5 {[%clk 0:01:22]} 21. Qe5 {[%clk 0:01:03]}  Rxb2+ {[%clk 0:01:08]} 22. Kxb2 {[%clk 0:01:04]}  Qb4+ {[%clk 0:01:08]} 23. Ka1 {[%clk 0:01:03]}  Bf6 {[%clk 0:01:08]} 24. Re4 {[%clk 0:00:40]}  Bxe5 {[%clk 0:01:05]} 25. Rxb4 {[%clk 0:00:39]}  Bxc3+ {[%clk 0:01:05]} 26. Rb2 {[%clk 0:00:40]}  Rb8 {[%clk 0:01:05]} 27. Rb1 {[%clk 0:00:40]}  Rf8 {[%clk 0:00:34]} 28. a3 {[%clk 0:00:32]}  Rxf2 {[%clk 0:00:31]} 29. Ka2 {[%clk 0:00:33]}  Bxb2 {[%clk 0:00:30]} 30. Rxb2 {[%clk 0:00:34]}  Rxh2 {[%clk 0:00:27]} 31. Rb8+ {[%clk 0:00:34]}  Kf7 {[%clk 0:00:27]} 32. Kb3 {[%clk 0:00:35]}  g5 {[%clk 0:00:22]} 33. c4 {[%clk 0:00:27]}  g4 {[%clk 0:00:21]} 34. Rb7+ {[%clk 0:00:25]}  Kf6 {[%clk 0:00:21]} 35. Rxa7 {[%clk 0:00:22]}  g3 {[%clk 0:00:19]} 36. Ra8 {[%clk 0:00:22]}  Rh6 {[%clk 0:00:15]} 37. Rf8+ {[%clk 0:00:21]}  Ke5 {[%clk 0:00:14]} 38. Rf1 {[%clk 0:00:18]}  Rg6 {[%clk 0:00:12]} 39. Kb4 {[%clk 0:00:17]}  h5 {[%clk 0:00:11]} 40. c5 {[%clk 0:00:16]}  h4 {[%clk 0:00:10]} 41. Kb5 {[%clk 0:00:15]}  g2 {[%clk 0:00:09]} 42. c6 {[%clk 0:00:13]}  gxf1=Q+ {[%clk 0:00:08]} 0-1


[Site "https://www.chess.com"]

[Event "Titled Tuesday Blitz June 20 Late 2023"]
[White "Ortega Amarelle, Mariano"]
[Black "Haydon, David L"]
[WhiteFideId "3504301"]
[BlackFideId "415405"]
[WhiteElo "2392"]
[BlackElo "2326"]
[Result "0-1"]
[Round "10"]
[TimeControl "180+2"]
[Date "2023.06.20"]
[WhiteClock "0:00:00"]
[BlackClock "0:01:07"]
[Board "38"]

1. Nf3 {[%clk 0:02:54]}  c6 {[%clk 0:03:00]} 2. b3 {[%clk 0:02:55]}  d5 {[%clk 0:03:00]} 3. Bb2 {[%clk 0:02:55]}  Bf5 {[%clk 0:03:00]} 4. g3 {[%clk 0:02:55]}  e6 {[%clk 0:03:00]} 5. Bg2 {[%clk 0:02:56]}  Nf6 {[%clk 0:03:00]} 6. O-O {[%clk 0:02:56]}  Bd6 {[%clk 0:03:00]} 7. d3 {[%clk 0:02:57]}  h6 {[%clk 0:02:59]} 8. Nbd2 {[%clk 0:02:52]}  Bh7 {[%clk 0:02:57]} 9. Re1 {[%clk 0:02:49]}  O-O {[%clk 0:02:50]} 10. e4 {[%clk 0:02:49]}  dxe4 {[%clk 0:02:47]} 11. dxe4 {[%clk 0:02:45]}  Bc5 {[%clk 0:02:46]} 12. h3 {[%clk 0:02:39]}  Nh5 {[%clk 0:02:44]} 13. Kf1 {[%clk 0:02:27]}  Nd7 {[%clk 0:02:34]} 14. Nc4 {[%clk 0:02:20]}  Qe7 {[%clk 0:02:28]} 15. Nfd2 {[%clk 0:01:52]}  Qg5 {[%clk 0:02:15]} 16. h4 {[%clk 0:01:36]}  Qxg3 {[%clk 0:02:12]} 17. Ne3 {[%clk 0:01:00]}  Qxh4 {[%clk 0:02:05]} 18. Nf3 {[%clk 0:00:57]}  Qe7 {[%clk 0:02:02]} 19. a3 {[%clk 0:00:49]}  Bxe4 {[%clk 0:01:59]} 20. b4 {[%clk 0:00:49]}  Bb6 {[%clk 0:01:58]} 21. c4 {[%clk 0:00:49]}  Nf4 {[%clk 0:01:56]} 22. c5 {[%clk 0:00:47]}  Bc7 {[%clk 0:01:55]} 23. Bh1 {[%clk 0:00:42]}  Rfd8 {[%clk 0:01:49]} 24. Ng4 {[%clk 0:00:26]}  f5 {[%clk 0:01:42]} 25. Qd4 {[%clk 0:00:24]}  Ne5 {[%clk 0:01:32]} 26. Ngxe5 {[%clk 0:00:17]}  Rxd4 {[%clk 0:01:31]} 27. Bxd4 {[%clk 0:00:18]}  Bxe5 {[%clk 0:01:21]} 28. Bxe5 {[%clk 0:00:16]}  Nd3 {[%clk 0:01:21]} 29. Bc3 {[%clk 0:00:11]}  Nxe1 {[%clk 0:01:19]} 30. Rxe1 {[%clk 0:00:12]}  Rd8 {[%clk 0:01:18]} 31. Be5 {[%clk 0:00:10]}  Rd3 {[%clk 0:01:16]} 32. Re3 {[%clk 0:00:08]}  Rd1+ {[%clk 0:01:09]} 33. Re1 {[%clk 0:00:07]}  Rxe1+ {[%clk 0:01:09]} 34. Kxe1 {[%clk 0:00:00]}  Qf7 {[%clk 0:01:07]} 0-1


[Site "https://www.chess.com"]

[Event "Titled Tuesday Blitz June 20 Late 2023"]
[White "Suarez Uriel, Adrian"]
[Black "Goryachkina, Aleksandra"]
[WhiteFideId "22230874"]
[BlackFideId "4147103"]
[WhiteElo "2331"]
[BlackElo "2471"]
[Result "0-1"]
[Round "10"]
[TimeControl "180+2"]
[Date "2023.06.20"]
[WhiteClock "0:00:23"]
[BlackClock "0:00:10"]
[Board "39"]

1. e4 {[%clk 0:03:00]}  c6 {[%clk 0:03:00]} 2. Nc3 {[%clk 0:02:58]}  d5 {[%clk 0:03:00]} 3. Nf3 {[%clk 0:02:59]}  dxe4 {[%clk 0:02:58]} 4. Nxe4 {[%clk 0:03:00]}  Nf6 {[%clk 0:02:58]} 5. Qe2 {[%clk 0:03:00]}  Nxe4 {[%clk 0:02:56]} 6. Qxe4 {[%clk 0:03:01]}  Nd7 {[%clk 0:02:55]} 7. Bc4 {[%clk 0:03:01]}  Nf6 {[%clk 0:02:55]} 8. Ne5 {[%clk 0:03:02]}  e6 {[%clk 0:02:55]} 9. Qe2 {[%clk 0:03:02]}  Bd6 {[%clk 0:02:51]} 10. d4 {[%clk 0:03:02]}  Qc7 {[%clk 0:02:48]} 11. O-O {[%clk 0:03:01]}  b5 {[%clk 0:02:46]} 12. Bd3 {[%clk 0:03:01]}  Bb7 {[%clk 0:02:41]} 13. h3 {[%clk 0:03:01]}  a6 {[%clk 0:02:39]} 14. a4 {[%clk 0:03:00]}  h6 {[%clk 0:02:30]} 15. b3 {[%clk 0:02:53]}  O-O {[%clk 0:02:27]} 16. Ba3 {[%clk 0:02:45]}  Bxa3 {[%clk 0:02:20]} 17. Rxa3 {[%clk 0:02:45]}  b4 {[%clk 0:02:19]} 18. Raa1 {[%clk 0:02:44]}  c5 {[%clk 0:02:19]} 19. dxc5 {[%clk 0:02:41]}  Qxc5 {[%clk 0:02:18]} 20. a5 {[%clk 0:02:39]}  Rfd8 {[%clk 0:02:17]} 21. Rfd1 {[%clk 0:02:36]}  Rd5 {[%clk 0:02:07]} 22. Re1 {[%clk 0:02:34]}  Rad8 {[%clk 0:01:51]} 23. Bc4 {[%clk 0:02:33]}  R5d6 {[%clk 0:01:48]} 24. Qe3 {[%clk 0:02:05]}  Qxe3 {[%clk 0:01:38]} 25. Rxe3 {[%clk 0:02:03]}  Rd1+ {[%clk 0:01:22]} 26. Re1 {[%clk 0:02:02]}  R1d2 {[%clk 0:01:16]} 27. Bd3 {[%clk 0:01:59]}  Nd5 {[%clk 0:01:11]} 28. Nc4 {[%clk 0:01:58]}  Rxd3 {[%clk 0:01:10]} 29. cxd3 {[%clk 0:01:58]}  Nf4 {[%clk 0:01:10]} 30. Ne3 {[%clk 0:01:58]}  Nxd3 {[%clk 0:01:03]} 31. Red1 {[%clk 0:01:57]}  e5 {[%clk 0:00:58]} 32. Ra4 {[%clk 0:01:53]}  Rd4 {[%clk 0:00:38]} 33. Nc2 {[%clk 0:01:53]}  Rd5 {[%clk 0:00:39]} 34. Rb1 {[%clk 0:01:26]}  Rb5 {[%clk 0:00:32]} 35. f3 {[%clk 0:01:24]}  f5 {[%clk 0:00:29]} 36. Rd1 {[%clk 0:01:12]}  e4 {[%clk 0:00:23]} 37. fxe4 {[%clk 0:01:01]}  Bxe4 {[%clk 0:00:24]} 38. Ne3 {[%clk 0:00:49]}  Nc5 {[%clk 0:00:22]} 39. Ra2 {[%clk 0:00:42]}  Nxb3 {[%clk 0:00:22]} 40. Nc4 {[%clk 0:00:40]}  Nc5 {[%clk 0:00:17]} 41. Nd6 {[%clk 0:00:39]}  Rb8 {[%clk 0:00:16]} 42. Nxe4 {[%clk 0:00:39]}  fxe4 {[%clk 0:00:14]} 43. Kf2 {[%clk 0:00:37]}  b3 {[%clk 0:00:14]} 44. Rb2 {[%clk 0:00:37]}  Nd3+ {[%clk 0:00:14]} 45. Rxd3 {[%clk 0:00:36]}  exd3 {[%clk 0:00:14]} 46. Ke3 {[%clk 0:00:37]}  Rb5 {[%clk 0:00:11]} 47. Kxd3 {[%clk 0:00:36]}  Kf7 {[%clk 0:00:07]} 48. Kc4 {[%clk 0:00:37]}  Ke6 {[%clk 0:00:05]} 49. Rxb3 {[%clk 0:00:37]}  Rxb3 {[%clk 0:00:06]} 50. Kxb3 {[%clk 0:00:36]}  Kd5 {[%clk 0:00:06]} 51. Kb4 {[%clk 0:00:33]}  Kd4 {[%clk 0:00:06]} 52. g4 {[%clk 0:00:24]}  g5 {[%clk 0:00:06]} 53. Kb3 {[%clk 0:00:24]}  Kc5 {[%clk 0:00:07]} 54. Kc3 {[%clk 0:00:22]}  Kb5 {[%clk 0:00:07]} 55. Kd4 {[%clk 0:00:23]}  Kxa5 {[%clk 0:00:07]} 56. Ke5 {[%clk 0:00:24]}  Kb5 {[%clk 0:00:08]} 57. Kf6 {[%clk 0:00:24]}  a5 {[%clk 0:00:08]} 58. Kg6 {[%clk 0:00:25]}  a4 {[%clk 0:00:09]} 59. Kxh6 {[%clk 0:00:26]}  a3 {[%clk 0:00:10]} 60. Kxg5 {[%clk 0:00:27]}  a2 {[%clk 0:00:10]} 61. h4 {[%clk 0:00:28]}  a1=Q {[%clk 0:00:11]} 62. h5 {[%clk 0:00:29]}  Qg7+ {[%clk 0:00:11]} 63. Kf5 {[%clk 0:00:28]}  Qh6 {[%clk 0:00:10]} 64. g5 {[%clk 0:00:26]}  Qxh5 {[%clk 0:00:10]} 65. Kf6 {[%clk 0:00:26]}  Qh4 {[%clk 0:00:11]} 66. Kf5 {[%clk 0:00:23]}  Qf2+ {[%clk 0:00:10]} 0-1


[Site "https://www.chess.com"]

[Event "Titled Tuesday Blitz June 20 Late 2023"]
[White "Howell, David W L"]
[Black "Adewumi, Tanitoluwa"]
[WhiteFideId "410608"]
[BlackFideId "30966396"]
[WhiteElo "2567"]
[BlackElo "2668"]
[Result "1-0"]
[Round "10"]
[TimeControl "180+2"]
[Date "2023.06.20"]
[WhiteClock "0:00:19"]
[BlackClock "0:00:00"]
[Board "40"]

1. e4 {[%clk 0:02:59]}  c5 {[%clk 0:02:50]} 2. Nc3 {[%clk 0:02:58]}  e6 {[%clk 0:02:49]} 3. Nge2 {[%clk 0:02:56]}  Nc6 {[%clk 0:02:47]} 4. g3 {[%clk 0:02:56]}  Nf6 {[%clk 0:02:46]} 5. Bg2 {[%clk 0:02:56]}  d5 {[%clk 0:02:46]} 6. exd5 {[%clk 0:02:55]}  exd5 {[%clk 0:02:45]} 7. d4 {[%clk 0:02:55]}  cxd4 {[%clk 0:02:44]} 8. Nxd4 {[%clk 0:02:56]}  Bc5 {[%clk 0:02:44]} 9. Nb3 {[%clk 0:02:55]}  Bb6 {[%clk 0:02:42]} 10. O-O {[%clk 0:02:42]}  Be6 {[%clk 0:02:41]} 11. Na4 {[%clk 0:02:38]}  O-O {[%clk 0:02:31]} 12. Re1 {[%clk 0:02:32]}  Re8 {[%clk 0:02:19]} 13. Nxb6 {[%clk 0:02:24]}  axb6 {[%clk 0:02:13]} 14. Be3 {[%clk 0:02:20]}  Ne4 {[%clk 0:01:44]} 15. c3 {[%clk 0:02:15]}  Ne5 {[%clk 0:01:22]} 16. Bd4 {[%clk 0:02:07]}  Nc4 {[%clk 0:01:14]} 17. Re2 {[%clk 0:02:05]}  Bf5 {[%clk 0:00:57]} 18. a3 {[%clk 0:01:53]}  Qd7 {[%clk 0:00:55]} 19. Qe1 {[%clk 0:01:50]}  Qb5 {[%clk 0:00:49]} 20. Qd1 {[%clk 0:01:43]}  h6 {[%clk 0:00:38]} 21. h3 {[%clk 0:01:34]}  Bg6 {[%clk 0:00:34]} 22. Kh2 {[%clk 0:01:32]}  Ng5 {[%clk 0:00:30]} 23. Rxe8+ {[%clk 0:00:48]}  Rxe8 {[%clk 0:00:30]} 24. a4 {[%clk 0:00:47]}  Qd7 {[%clk 0:00:20]} 25. h4 {[%clk 0:00:42]}  Ne4 {[%clk 0:00:10]} 26. Ra2 {[%clk 0:00:42]}  Qf5 {[%clk 0:00:08]} 27. Qf3 {[%clk 0:00:37]}  Qxf3 {[%clk 0:00:07]} 28. Bxf3 {[%clk 0:00:38]}  f6 {[%clk 0:00:04]} 29. Kg2 {[%clk 0:00:35]}  Bf7 {[%clk 0:00:04]} 30. Nc1 {[%clk 0:00:31]}  Ncd2 {[%clk 0:00:03]} 31. Bd1 {[%clk 0:00:30]}  g5 {[%clk 0:00:03]} 32. b3 {[%clk 0:00:27]}  Nb1 {[%clk 0:00:02]} 33. Ne2 {[%clk 0:00:25]}  Rc8 {[%clk 0:00:02]} 34. Rc2 {[%clk 0:00:20]}  Nbd2 {[%clk 0:00:02]} 35. f3 {[%clk 0:00:19]}  Nxb3 {[%clk 0:00:01]} 36. fxe4 {[%clk 0:00:19]}  dxe4 {[%clk 0:00:00]} 37. Bxf6 {[%clk 0:00:19]} 1-0


[Site "https://www.chess.com"]